bitfinex-derivatives/quotes_SOLF0:USTF0_20241206
["timestamp","ask_amount","ask_price","bid_price","bid_amount"]
[1733484760423,0.1581,234.61,234.47,9.4364933]
[1733484760623,19.67276738,234.6,234.48,2.14]
[1733484760820,11.1828208,234.59,234.49,4.30817582]
[1733484761021,9.4364933,234.62,234.48,3.5133]
[1733484761226,9.4364933,234.62,234.49,1.2758]
[1733484762024,9.4364933,234.59,234.49,1.2758]
[1733484762226,2.14,234.65,234.5,2.14]
[1733484762227,9.4364933,234.56,234.5,2.14]
[1733484763228,9.4364933,234.56,234.42,1.2758]
[1733484763425,9.4364933,234.53,234.43,2.14]
[1733484763827,9.4364933,234.56,234.43,2.14]
[1733484764029,9.4364933,234.56,234.43,6.45200477]
[1733484764323,9.4364933,234.56,234.43,2.14]
[1733484766225,0.1551,234.59,234.43,2.14]
[1733484766226,9.4364933,234.53,234.43,2.14]
[1733484766530,0.1551,234.59,234.44,2.14]
[1733484766531,9.4364933,234.5,234.44,2.14]
[1733484767528,9.4364933,234.47,234.24,44.4]
[1733484767733,9.4364933,234.47,234.3,9.4364933]
[1733484768532,9.4364933,234.44,234.3,9.4364933]
[1733484768733,9.4364933,234.44,234.31,2.14]
[1733484769733,9.4364933,234.44,234.32,2.14]
[1733484771231,9.4364933,234.48,234.33,9.4364933]
[1733484772738,9.4364933,234.48,234.33,13.68148463]
[1733484773428,9.4364933,234.48,234.33,9.4364933]
[1733484773930,9.4364933,234.48,234.32,2.14]
[1733484774133,9.4364933,234.45,234.32,2.14]
[1733484775429,9.4364933,234.45,234.32,6.40412877]
[1733484775627,9.4364933,234.45,234.32,2.14]
[1733484776935,9.4364933,234.42,234.33,2.14]
[1733484777133,9.4364933,234.42,234.34,2.14]
[1733484778130,9.4364933,234.39,234.32,2.14]
[1733484778331,2.14,234.44,234.32,2.14]
[1733484778332,9.4364933,234.36,234.32,2.14]
[1733484778533,9.4364933,234.36,234.24,44.4]
[1733484778736,9.4364933,234.36,234.25,2.14]
[1733484781244,9.4364933,234.36,234.25,6.4124708]
[1733484781646,9.4364933,234.39,234.25,6.4124708]
[1733484782145,9.4364933,234.39,234.27,9.4364933]
[1733484782642,9.4364933,234.39,234.27,13.72731371]
[1733484783245,9.4364933,234.39,234.27,13.66373019]
[1733484785343,0.1565,234.47,234.3,9.4364933]
[1733484785549,9.5929933,234.47,234.33,9.4364933]
[1733484786242,9.5929933,234.47,234.33,13.66343484]
[1733484786644,9.4364933,234.47,234.33,9.4364933]
[1733484786844,9.4364933,234.47,234.33,15.00325403]
[1733484789847,35.32890975,234.49,234.36,9.4364933]
[1733484790044,9.4364933,234.5,234.37,3.4606]
[1733484791043,9.4364933,234.53,234.37,3.4606]
[1733484792844,9.4364933,234.5,234.37,1.3206]
[1733484793054,9.4364933,234.47,234.38,2.14]
[1733484793648,9.4364933,234.5,234.38,2.14]
[1733484793844,0.27577,234.59,234.4,9.4364933]
[1733484794050,9.4364933,234.56,234.4,13.80766241]
[1733484796552,9.4364933,234.53,234.41,2.14]
[1733484798755,9.4364933,234.5,234.37,1.3206]
[1733484798956,9.4364933,234.47,234.38,2.14]
[1733484800054,9.4364933,234.5,234.39,4.2203362]
[1733484800449,9.4364933,234.5,234.38,2.14]
[1733484802161,9.4364933,234.47,234.38,2.14]
[1733484803657,9.4364933,234.47,234.37,1.3206]
[1733484803959,9.4364933,234.44,234.38,2.14]
[1733484804155,9.4364933,234.44,234.33,1.2643]
[1733484804354,9.4364933,234.44,234.34,2.14]
[1733484812061,2.14,234.49,234.34,2.14]
[1733484812062,9.4364933,234.47,234.34,2.14]
[1733484812263,9.4364933,234.44,234.34,2.14]
[1733484813062,9.4364933,234.44,234.34,6.47925812]
[1733484813362,9.4364933,234.44,234.34,2.14]
[1733484814059,2.14,234.52,234.34,6.40784323]
[1733484814060,9.4364933,234.47,234.34,6.40784323]
[1733484814262,9.4364933,234.47,234.34,2.14]
[1733484814764,9.4364933,234.47,234.34,6.46628346]
[1733484815062,9.4364933,234.47,234.34,2.14]
[1733484815459,9.4364933,234.47,234.34,6.3848084]
[1733484815659,9.4364933,234.47,234.34,2.14]
[1733484815859,9.4364933,234.41,234.32,1.3178]
[1733484816063,9.4364933,234.41,234.33,2.14]
[1733484817066,2.2969,234.47,234.33,2.14]
[1733484817067,9.4364933,234.44,234.33,2.14]
[1733484819267,9.4364933,234.44,234.33,6.43465408]
[1733484819562,9.4364933,234.44,234.33,2.14]
[1733484819968,9.4364933,234.44,234.33,6.43258128]
[1733484820164,9.4364933,234.44,234.33,2.14]
[1733484820366,9.4364933,234.44,234.34,4.35528095]
[1733484820767,9.4364933,234.44,234.33,2.14]
[1733484820967,2.14,234.51,234.33,2.14]
[1733484820968,9.4364933,234.47,234.33,2.14]
[1733484821162,9.4364933,234.47,234.33,6.48717691]
[1733484821367,9.4364933,234.47,234.33,2.14]
[1733484821567,9.4364933,234.47,234.35,9.4364933]
[1733484821872,9.4364933,234.47,234.35,13.62969347]
[1733484822163,9.4364933,234.47,234.35,4.19320017]
[1733484822363,9.4364933,234.47,234.33,2.14]
[1733484822868,9.4364933,234.47,234.33,6.49528095]
[1733484823064,9.4364933,234.47,234.33,2.14]
[1733484823569,9.4364933,234.47,234.33,6.47425248]
[1733484823970,9.4364933,234.47,234.33,2.14]
[1733484824367,9.4364933,234.47,234.33,11.5764933]
[1733484824573,0.1569,234.55,234.33,15.81734804]
[1733484824771,9.4364933,234.5,234.33,15.81734804]
[1733484824970,9.4364933,234.5,234.36,9.4364933]
[1733484825273,9.4364933,234.5,234.37,1.3421]
[1733484825473,9.4364933,234.5,234.38,2.14]
[1733484828865,9.4364933,234.53,234.39,9.4364933]
[1733484829065,9.4364933,234.53,234.39,13.79388432]
[1733484830675,9.4364933,234.49,234.39,4.35739102]
[1733484830868,9.4364933,234.49,234.38,2.14]
[1733484831268,9.4364933,234.52,234.38,2.14]
[1733484834178,9.4364933,234.52,234.39,9.4364933]
[1733484834377,9.4364933,234.52,234.39,13.71634043]
[1733484835474,9.4364933,234.58,234.45,9.4364933]
[1733484835676,0.27577,234.59,234.46,4.8481]
[1733484835872,0.27577,234.59,234.48,9.4364933]
[1733484836076,0.27577,234.59,234.51,9.4364933]
[1733484836373,0.27577,234.59,234.52,2.14]
[1733484837177,0.27577,234.59,234.52,6.31122758]
[1733484839275,0.27577,234.59,234.52,2.14]
[1733484839474,0.27577,234.59,234.49,4.16984154]
[1733484839675,0.27577,234.59,234.5,2.14]
[1733484840577,0.27577,234.59,234.51,2.14]
[1733484840782,0.27577,234.59,234.52,2.14]
[1733484841082,9.4364933,234.57,234.5,2.14]
[1733484843778,9.4364933,234.54,234.43,44.36]
[1733484844084,9.4364933,234.51,234.44,2.14]
[1733484844583,9.4364933,234.51,234.37,3.8696]
[1733484844784,9.4364933,234.48,234.38,2.14]
[1733484845579,9.4364933,234.51,234.38,2.14]
[1733484845778,9.4364933,234.54,234.39,9.4364933]
[1733484845983,0.1547,234.58,234.42,9.4364933]
[1733484846178,9.4364933,234.57,234.45,9.4364933]
[1733484846777,9.4364933,234.6,234.45,13.7190227]
[1733484847082,9.4364933,234.6,234.45,9.4364933]
[1733484847285,9.4364933,234.57,234.45,9.4364933]
[1733484847883,0.1556,234.69,234.48,9.4364933]
[1733484848077,9.4364933,234.62,234.49,2.14]
[1733484850685,9.4364933,234.56,234.49,2.14]
[1733484851081,2.14,234.65,234.49,2.14]
[1733484851288,0.1556,234.69,234.49,2.14]
[1733484851289,9.4364933,234.61,234.49,2.14]
[1733484851884,9.4364933,234.64,234.5,4.16646864]
[1733484852079,9.4364933,234.64,234.49,2.14]
[1733484852279,9.4364933,234.61,234.49,2.14]
[1733484852979,9.4364933,234.61,234.5,4.29330416]
[1733484853185,9.4364933,234.61,234.49,2.14]
[1733484853689,9.4364933,234.61,234.5,4.18930672]
[1733484854190,9.4364933,234.61,234.49,2.14]
[1733484854586,9.4364933,234.61,234.49,6.48956507]
[1733484855183,9.4364933,234.61,234.49,2.14]
[1733484855389,9.4364933,234.61,234.49,6.40151979]
[1733484859688,9.4364933,234.64,234.49,6.40151979]
[1733484859995,9.4364933,234.64,234.5,9.4364933]
[1733484862590,0.63006,234.7,234.56,9.4364933]
[1733484862794,0.63006,234.7,234.57,2.14]
[1733484862997,0.63006,234.7,234.58,4.19150641]
[1733484863796,0.63006,234.7,234.57,4.7784]
[1733484863999,0.63006,234.7,234.57,6.0596]
[1733484864296,0.63006,234.7,234.57,10.33463822]
[1733484864698,0.63006,234.7,234.59,9.4364933]
[1733484865795,0.63006,234.7,234.62,9.4364933]
[1733484866001,0.63006,234.7,234.63,2.14]
[1733484866401,9.4364933,234.76,234.63,2.14]
[1733484867103,9.4364933,234.76,234.63,6.39562318]
[1733484868405,348.60570239,235.09,234.71,9.4364933]
[1733484868612,9.4364933,234.88,234.72,2.14]
[1733484868902,11.22874981,234.87,234.72,9.03991607]
[1733484869302,9.4364933,234.88,234.72,9.03991607]
[1733484869503,0.89223,234.82,234.74,9.4364933]
[1733484870102,0.89223,234.82,234.72,6.1598]
[1733484870397,0.89223,234.82,234.73,2.14]
[1733484870398,10.3287233,234.82,234.73,2.14]
[1733484871006,10.3287233,234.82,234.72,2.7074]
[1733484871205,10.3287233,234.82,234.74,2.14]
[1733484871508,10.3287233,234.82,234.75,2.14]
[1733484874914,0.89223,234.82,234.75,2.14]
[1733484875515,10.3287233,234.82,234.75,2.14]
[1733484878417,0.89223,234.82,234.75,2.14]
[1733484879520,10.3287233,234.82,234.75,2.14]
[1733484880415,0.89223,234.82,234.75,2.14]
[1733484882017,10.3287233,234.82,234.75,2.14]
[1733484885121,10.3287233,234.82,234.68,9.4364933]
[1733484885324,10.3287233,234.82,234.69,2.14]
[1733484885922,9.4364933,234.79,234.69,2.14]
[1733484888620,10.3287233,234.82,234.69,2.14]
[1733484891622,9.4364933,234.82,234.69,2.14]
[1733484897226,9.4364933,234.85,234.71,9.4364933]
[1733484897626,9.4364933,234.85,234.72,4.27723534]
[1733484897831,9.4364933,234.85,234.69,2.14]
[1733484897832,9.4364933,234.88,234.74,9.4364933]
[1733484898130,9.4364933,234.88,234.75,2.14]
[1733484898332,11.21403554,234.87,234.75,4.8007]
[1733484898529,9.4364933,234.88,234.75,8.9850816]
[1733484898732,11.21712503,234.87,234.75,8.9850816]
[1733484899027,9.4364933,234.88,234.75,8.9850816]
[1733484899233,11.21863242,234.87,234.75,8.9850816]
[1733484899427,0.1529,234.92,234.75,10.3298816]
[1733484899428,9.4364933,234.91,234.75,10.3298816]
[1733484899735,11.22405868,234.9,234.75,10.3298816]
[1733484899934,9.4364933,234.91,234.75,10.3298816]
[1733484900231,19.71204297,234.9,234.78,9.4364933]
[1733484900532,9.4364933,234.91,234.75,6.1455]
[1733484900533,9.4364933,234.91,234.75,10.42115641]
[1733484900734,11.22978647,234.9,234.75,10.42115641]
[1733484900933,9.4364933,234.88,234.75,6.1455]
[1733484901337,9.4364933,234.85,234.76,2.14]
[1733484901830,11.23228467,234.84,234.76,2.14]
[1733484902029,9.4364933,234.85,234.77,2.14]
[1733484902227,1.20654,234.94,234.68,44.3]
[1733484902228,9.4364933,234.82,234.68,44.3]
[1733484902527,11.23088139,234.81,234.69,2.14]
[1733484904335,8.50839392,234.8,234.69,2.14]
[1733484904534,11.23088139,234.79,234.69,2.14]
[1733484904735,11.23088139,234.78,234.69,2.14]
[1733484905031,9.4364933,234.82,234.69,2.14]
[1733484905339,19.77397106,234.81,234.69,2.14]
[1733484905531,19.77397106,234.8,234.69,2.14]
[1733484905735,19.77397106,234.79,234.69,2.14]
[1733484905937,11.2596877,234.78,234.69,2.14]
[1733484906132,9.4364933,234.82,234.69,2.14]
[1733484906338,9.4364933,234.79,234.69,2.14]
[1733484906540,11.27597185,234.78,234.69,2.14]
[1733484906838,11.27597185,234.77,234.65,1.3777]
[1733484907137,9.4364933,234.79,234.66,2.14]
[1733484907337,19.80853685,234.78,234.66,2.14]
[1733484907531,11.27606068,234.77,234.66,2.14]
[1733484907731,11.27606068,234.76,234.66,2.14]
[1733484907936,9.4364933,234.79,234.66,2.14]
[1733484908134,9.4364933,234.76,234.67,2.14]
[1733484908339,19.81789843,234.75,234.66,2.14]
[1733484908640,11.28519449,234.74,234.66,2.14]
[1733484908835,9.4364933,234.79,234.66,2.14]
[1733484909135,19.82681677,234.78,234.66,6.47425416]
[1733484909436,19.82681677,234.77,234.66,6.47425416]
[1733484909738,11.2910321,234.76,234.66,2.14]
[1733484909936,9.4364933,234.81,234.66,2.14]
[1733484910135,19.83620579,234.8,234.66,2.14]
[1733484910335,19.83620579,234.79,234.66,2.14]
[1733484910635,19.83620579,234.78,234.66,2.14]
[1733484910837,11.29674118,234.77,234.66,2.14]
[1733484911037,9.4364933,234.81,234.66,2.14]
[1733484911238,19.84373768,234.8,234.66,2.14]
[1733484911437,19.84373768,234.79,234.66,2.14]
[1733484911632,19.84373768,234.78,234.66,2.14]
[1733484911938,11.30183952,234.77,234.66,2.14]
[1733484912139,9.4364933,234.81,234.66,2.14]
[1733484912439,19.84863246,234.8,234.66,2.14]
[1733484912740,19.84863246,234.79,234.66,2.14]
[1733484912939,19.84863246,234.78,234.66,2.14]
[1733484913136,11.30545157,234.77,234.66,2.14]
[1733484913534,8.54469491,234.76,234.66,2.14]
[1733484913840,11.30545157,234.75,234.66,2.14]
[1733484914034,11.30545157,234.74,234.66,2.14]
[1733484914231,9.4364933,234.78,234.66,2.14]
[1733484914438,19.84881949,234.77,234.66,2.14]
[1733484914638,19.84881949,234.76,234.66,2.14]
[1733484914936,11.30396437,234.75,234.66,2.14]
[1733484915136,11.30396437,234.74,234.66,2.14]
[1733484915338,11.30176869,234.73,234.65,1.3308]
[1733484915537,19.84840433,234.72,234.66,2.14]
[1733484915843,11.30176869,234.71,234.66,2.14]
[1733484916134,9.4364933,234.75,234.66,2.14]
[1733484916338,19.84256225,234.74,234.66,2.14]
[1733484916534,19.84256225,234.73,234.66,2.14]
[1733484916732,19.84256225,234.72,234.66,2.14]
[1733484916935,11.29719975,234.71,234.66,2.14]
[1733484917135,2.14,234.83,234.66,2.14]
[1733484917339,9.4364933,234.79,234.66,2.14]
[1733484917536,19.84054698,234.78,234.66,2.14]
[1733484917733,19.84054698,234.77,234.66,2.14]
[1733484917937,19.84054698,234.76,234.66,6.36823673]
[1733484918136,11.29636658,234.75,234.67,9.4364933]
[1733484918338,9.4364933,234.81,234.67,9.4364933]
[1733484918540,2.14,234.84,234.67,2.14]
[1733484918541,9.4364933,234.78,234.67,2.14]
[1733484918742,19.83813397,234.77,234.67,2.14]
[1733484919044,19.83813397,234.76,234.67,2.14]
[1733484919337,19.83813397,234.75,234.67,2.14]
[1733484919642,19.83813397,234.74,234.67,2.14]
[1733484919834,19.83813397,234.73,234.67,2.14]
[1733484920142,11.29453346,234.72,234.67,2.14]
[1733484920345,9.4364933,234.75,234.67,2.14]
[1733484920645,11.28894898,234.74,234.67,2.14]
[1733484920842,11.28894898,234.73,234.67,2.14]
[1733484921041,11.28894898,234.72,234.67,2.14]
[1733484921240,9.4364933,234.75,234.67,2.14]
[1733484921441,11.28340105,234.74,234.67,2.14]
[1733484921638,9.4364933,234.75,234.67,2.14]
[1733484921836,2.14,234.84,234.67,2.14]
[1733484922044,9.4364933,234.8,234.67,2.14]
[1733484922236,19.82316873,234.79,234.67,2.14]
[1733484922537,11.28192866,234.78,234.67,11.5764933]
[1733484922737,9.4364933,234.82,234.67,15.88829094]
[1733484922938,19.82665733,234.81,234.67,15.88829094]
[1733484923142,19.82665733,234.8,234.67,15.88829094]
[1733484923335,11.28613027,234.79,234.67,15.88829094]
[1733484923534,9.4364933,234.82,234.67,15.88829094]
[1733484923741,11.28663228,234.81,234.67,15.88829094]
[1733484924041,9.4364933,234.82,234.67,11.5764933]
[1733484924242,11.28833452,234.81,234.7,9.4364933]
[1733484924433,1.02323,234.83,234.7,9.4364933]
[1733484924639,1.02323,234.83,234.73,9.4364933]
[1733484924834,1.02323,234.83,234.74,3.4676]
[1733484926341,1.02323,234.83,234.75,1.3157]
[1733484928245,1.02323,234.83,234.76,9.4364933]
[1733484931741,1.02323,234.83,234.75,1.3157]
[1733484932046,1.02323,234.83,234.74,1.3276]
[1733484932241,9.4364933,234.81,234.75,2.12]
[1733484932440,9.4364933,234.81,234.71,1.3224]
[1733484932441,9.4364933,234.78,234.71,1.3224]
[1733484932639,9.4364933,234.78,234.72,2.12]
[1733484932848,9.4364933,234.78,234.71,2.12]
[1733484933044,9.4364933,234.75,234.71,2.12]
[1733484933445,9.4364933,234.75,234.63,1.3176]
[1733484933643,9.4364933,234.75,234.67,2.14]
[1733484933845,11.26842259,234.74,234.67,2.14]
[1733484934052,9.4364933,234.75,234.67,2.14]
[1733484934253,11.26842259,234.74,234.67,2.14]
[1733484934550,2.14,234.8,234.67,2.14]
[1733484934750,19.78719962,234.79,234.67,2.14]
[1733484934945,19.78719962,234.78,234.67,2.14]
[1733484935146,11.2654397,234.77,234.67,2.14]
[1733484935348,9.4364933,234.81,234.67,2.14]
[1733484935550,19.78721471,234.8,234.67,2.14]
[1733484935850,11.26578366,234.79,234.67,2.14]
[1733484936149,11.26578366,234.78,234.67,2.14]
[1733484936345,11.26578366,234.77,234.67,2.14]
[1733484936545,9.4364933,234.78,234.67,2.14]
[1733484937247,11.26570257,234.77,234.67,2.14]
[1733484937450,9.4364933,234.78,234.67,2.14]
[1733484937747,11.26703875,234.77,234.67,2.14]
[1733484937947,9.4364933,234.78,234.67,2.14]
[1733484938149,11.26692285,234.77,234.67,2.14]
[1733484938351,9.4364933,234.75,234.67,2.14]
[1733484939052,9.4364933,234.78,234.67,2.14]
[1733484941749,9.4364933,234.75,234.63,1.3176]
[1733484941950,9.4364933,234.72,234.64,2.14]
[1733484943256,9.4364933,234.69,234.56,1.2941]
[1733484943962,9.4364933,234.69,234.57,2.14]
[1733484945562,0.1519,234.72,234.57,2.14]
[1733484945563,9.4364933,234.66,234.57,2.14]
[1733484945758,2.14,234.68,234.57,2.14]
[1733484946563,9.4364933,234.69,234.57,2.14]
[1733484946960,9.4364933,234.72,234.57,11.5764933]
[1733484947167,11.2495562,234.71,234.6,9.4364933]
[1733484947363,9.4364933,234.72,234.6,9.4364933]
[1733484947970,9.4364933,234.75,234.6,9.4364933]
[1733484948160,19.75883092,234.74,234.61,2.5373]
[1733484948472,11.24872744,234.73,234.62,2.14]
[1733484948761,9.4364933,234.75,234.62,2.14]
[1733484952868,9.4364933,234.78,234.63,9.4364933]
[1733484954774,9.4364933,234.81,234.66,9.4364933]
[1733484954969,9.4364933,234.81,234.67,2.14]
[1733484955175,9.4364933,234.78,234.67,2.14]
[1733484956177,44.32,234.91,234.67,2.14]
[1733484956374,9.4364933,234.82,234.67,2.14]
[1733484956670,9.4364933,234.79,234.67,2.14]
[1733484958670,2.12,234.79,234.61,3.8172]
[1733484958874,9.4364933,234.68,234.61,2.12]
[1733484959381,9.4364933,234.65,234.54,2.5855]
[1733484959568,9.4364933,234.65,234.57,2.12]
[1733484967882,9.4364933,234.68,234.57,2.12]
[1733484968281,9.4364933,234.64,234.57,2.12]
[1733484968883,2.12,234.71,234.57,2.12]
[1733484968884,9.4364933,234.67,234.57,2.12]
[1733484970284,9.4364933,234.64,234.57,2.12]
[1733484972392,9.4364933,234.67,234.57,2.12]
[1733484976995,2.14,234.72,234.57,2.12]
[1733484977194,9.4364933,234.69,234.57,2.12]
[1733484978698,9.4364933,234.66,234.57,2.12]
[1733484979088,9.4364933,234.63,234.56,2.12]
[1733484981098,9.4364933,234.66,234.56,2.12]
[1733484981296,9.4364933,234.69,234.56,2.12]
[1733484984297,9.4364933,234.66,234.56,2.12]
[1733484984888,9.4364933,234.63,234.54,2.5855]
[1733484985093,9.4364933,234.63,234.57,2.12]
[1733484987396,9.4364933,234.6,234.57,2.12]
[1733484987597,9.4364933,234.6,234.44,3.9147]
[1733484987800,9.4364933,234.6,234.5,2.12]
[1733484989500,9.4364933,234.57,234.51,2.12]
[1733484990398,9.4364933,234.57,234.41,9.4364933]
[1733484990700,9.4364933,234.57,234.35,44.34]
[1733484990701,9.4364933,234.48,234.35,44.34]
[1733484991004,9.4364933,234.48,234.36,2.12]
[1733484991203,9.4364933,234.51,234.36,2.12]
[1733484991408,2.12,234.59,234.41,9.4364933]
[1733484991607,29.1733529,234.58,234.44,9.4364933]
[1733484991803,19.7368596,234.57,234.44,9.4364933]
[1733484992006,11.22302248,234.56,234.45,4.18590874]
[1733484992302,9.4364933,234.6,234.47,9.4364933]
[1733484992604,9.4364933,234.63,234.48,2.12]
[1733484993404,9.4364933,234.63,234.49,4.3419848]
[1733484993604,9.4364933,234.6,234.48,2.12]
[1733484994699,9.4364933,234.57,234.42,3.9337]
[1733484994903,9.4364933,234.57,234.43,2.12]
[1733484995305,9.4364933,234.54,234.43,2.12]
[1733484995507,9.4364933,234.54,234.44,2.12]
[1733484995804,9.4364933,234.57,234.44,2.12]
[1733485002812,9.4364933,234.57,234.44,11.5564933]
[1733485003712,9.4364933,234.57,234.44,2.12]
[1733485004019,6.03242579,234.53,234.45,6.03242579]
[1733485006317,6.03242579,234.53,234.46,2.12]
[1733485008719,6.03242579,234.53,234.47,6.03242579]
[1733485009722,2.12,234.63,234.47,6.03242579]
[1733485009918,19.78647559,234.62,234.47,6.03242579]
[1733485010118,6.03242579,234.54,234.47,6.03242579]
[1733485010417,6.03242579,234.55,234.47,10.39406722]
[1733485010618,2.12,234.63,234.47,10.39406722]
[1733485010824,6.03242579,234.57,234.49,6.03242579]
[1733485011522,0.1527,234.69,234.51,6.03242579]
[1733485011523,2.12,234.66,234.51,6.03242579]
[1733485011720,6.03242579,234.59,234.52,2.12]
[1733485012725,2.12,234.66,234.53,6.03242579]
[1733485012927,6.03242579,234.61,234.53,6.03242579]
[1733485013320,6.03242579,234.59,234.52,2.12]
[1733485014930,6.03242579,234.57,234.52,2.12]
[1733485015325,6.03242579,234.55,234.52,2.12]
[1733485019427,6.03242579,234.57,234.52,2.12]
[1733485021730,6.03242579,234.55,234.52,2.12]
[1733485022035,6.03242579,234.53,234.51,2.12]
[1733485022231,2.12,234.65,234.51,2.12]
[1733485022433,6.03242579,234.58,234.51,2.12]
[1733485023331,0.1527,234.69,234.52,6.03242579]
[1733485023536,0.1527,234.69,234.54,6.03242579]
[1733485023537,6.03242579,234.62,234.54,6.03242579]
[1733485024635,6.03242579,234.58,234.51,2.12]
[1733485024836,6.03242579,234.56,234.51,2.12]
[1733485025634,2.12,234.68,234.46,6.03242579]
[1733485025635,6.03242579,234.54,234.46,6.03242579]
[1733485025933,6.03242579,234.52,234.49,2.12]
[1733485026337,6.03242579,234.54,234.49,2.12]
[1733485027039,6.03242579,234.54,234.42,8.21172346]
[1733485027337,6.03242579,234.5,234.43,2.12]
[1733485027640,0.1544,234.6,234.46,6.03242579]
[1733485027841,19.8255585,234.59,234.46,6.03242579]
[1733485028140,6.03242579,234.53,234.44,6.03242579]
[1733485028336,6.03242579,234.53,234.43,2.12]
[1733485028537,0.1544,234.6,234.43,2.12]
[1733485028840,6.03242579,234.53,234.45,6.03242579]
[1733485029542,6.03242579,234.55,234.43,2.12]
[1733485029739,6.03242579,234.53,234.44,6.03242579]
[1733485030442,6.03242579,234.51,234.43,8.15242579]
[1733485031443,6.03242579,234.51,234.44,2.12]
[1733485031845,6.03242579,234.49,234.44,2.12]
[1733485032345,6.03242579,234.51,234.44,2.12]
[1733485033740,2.12,234.61,234.47,6.03242579]
[1733485033949,6.03242579,234.56,234.47,6.03242579]
[1733485035337,6.03242579,234.56,234.49,6.03242579]
[1733485035542,2.12,234.61,234.5,2.12]
[1733485035742,6.03242579,234.57,234.5,2.12]
[1733485035944,2.12,234.65,234.51,6.03242579]
[1733485036144,6.03242579,234.6,234.51,6.03242579]
[1733485036439,6.03242579,234.6,234.53,6.03242579]
[1733485037336,6.03242579,234.62,234.53,6.03242579]
[1733485038346,6.03242579,234.6,234.53,6.03242579]
[1733485040238,2.12,234.69,234.53,6.03242579]
[1733485040438,19.85020157,234.68,234.57,6.03242579]
[1733485040647,6.03242579,234.64,234.58,2.12]
[1733485040948,11.30181649,234.63,234.58,2.12]
[1733485041348,6.03242579,234.64,234.58,2.12]
[1733485045257,6.03242579,234.62,234.58,2.12]
[1733485045552,6.03242579,234.6,234.53,1.3718]
[1733485045746,6.03242579,234.6,234.54,2.12]
[1733485046148,6.03242579,234.58,234.55,2.12]
[1733485049648,6.03242579,234.56,234.41,1.2723]
[1733485049851,6.03242579,234.54,234.46,6.03242579]
[1733485050050,6.03242579,234.52,234.46,6.03242579]
[1733485050353,6.03242579,234.52,234.47,2.12]
[1733485050553,6.03242579,234.54,234.47,2.12]
[1733485050758,6.03242579,234.56,234.48,6.03242579]
[1733485051551,6.03242579,234.58,234.5,6.03242579]
[1733485051755,6.03242579,234.58,234.52,6.03242579]
[1733485051956,6.03242579,234.58,234.53,2.12]
[1733485052561,2.12,234.66,234.54,6.03242579]
[1733485052752,6.03242579,234.62,234.54,6.03242579]
[1733485053657,31.84652272,234.67,234.53,2.12]
[1733485053861,6.03242579,234.58,234.53,2.12]
[1733485054967,6.03242579,234.54,234.42,2.7301]
[1733485055154,6.03242579,234.57,234.49,6.03242579]
[1733485055463,31.84652272,234.67,234.53,6.03242579]
[1733485055665,6.03242579,234.62,234.54,2.12]
[1733485056165,6.03242579,234.62,234.55,6.03242579]
[1733485060163,31.84652272,234.67,234.57,6.03242579]
[1733485060360,17.32039024,234.66,234.59,6.03242579]
[1733485060562,6.03242579,234.66,234.6,2.12]
[1733485060960,0.74806,234.74,234.61,6.03242579]
[1733485061162,6.03242579,234.7,234.61,6.03242579]
[1733485061858,6.03242579,234.7,234.63,6.03242579]
[1733485062060,0.74806,234.74,234.63,6.03242579]
[1733485062061,6.03242579,234.71,234.63,6.03242579]
[1733485062560,0.74806,234.74,234.65,6.03242579]
[1733485062766,6.03242579,234.72,234.66,2.12]
[1733485062968,11.28189617,234.71,234.66,2.12]
[1733485063263,6.03242579,234.72,234.66,2.12]
[1733485063866,6.03242579,234.7,234.61,2.6509]
[1733485064058,6.03242579,234.7,234.62,8.15242579]
[1733485065265,0.74806,234.74,234.66,6.03242579]
[1733485065466,11.27380404,234.73,234.68,6.03242579]
[1733485065667,0.74806,234.74,234.68,6.03242579]
[1733485065862,11.2750525,234.73,234.68,6.03242579]
[1733485066167,0.74806,234.74,234.68,6.03242579]